[Event "Titled Tuesday Blitz April 26 Late 2022"]
[White "Tanenbaum, Zachary"]
[Black "Moral Garcia, Serafin"]
[WhiteFideId "2060850"]
[BlackFideId "2201925"]
[WhiteElo "2168"]
[BlackElo "2228"]
[Result "1-0"]
[Round "10"]
[TimeControl "180+1"]
[Date "2022.04.26"]
[WhiteClock "0:00:11"]
[BlackClock "0:01:19"]

1. e4 {[%clk 0:02:57]}  e5 {[%clk 0:02:57]} 2. Nf3 {[%clk 0:02:58]}  Nc6 {[%clk 0:02:57]} 3. Bc4 {[%clk 0:02:58]}  Bc5 {[%clk 0:02:57]} 4. c3 {[%clk 0:02:59]}  Nf6 {[%clk 0:02:57]} 5. d3 {[%clk 0:03:00]}  a6 {[%clk 0:02:57]} 6. Nbd2 {[%clk 0:03:00]}  Ba7 {[%clk 0:02:57]} 7. a4 {[%clk 0:03:01]}  d6 {[%clk 0:02:57]} 8. Nf1 {[%clk 0:03:02]}  O-O {[%clk 0:02:57]} 9. Ng3 {[%clk 0:03:02]}  Ne7 {[%clk 0:02:57]} 10. O-O {[%clk 0:03:03]}  Ng6 {[%clk 0:02:57]} 11. Be3 {[%clk 0:03:04]}  h6 {[%clk 0:02:57]} 12. Bxa7 {[%clk 0:03:05]}  Rxa7 {[%clk 0:02:57]} 13. d4 {[%clk 0:03:06]}  Qe7 {[%clk 0:02:52]} 14. Re1 {[%clk 0:03:04]}  Ra8 {[%clk 0:02:52]} 15. Nf5 {[%clk 0:03:03]}  Qd8 {[%clk 0:02:48]} 16. dxe5 {[%clk 0:02:45]}  Nxe5 {[%clk 0:02:46]} 17. Nxe5 {[%clk 0:02:37]}  dxe5 {[%clk 0:02:46]} 18. Qf3 {[%clk 0:02:35]}  Bxf5 {[%clk 0:02:44]} 19. Qxf5 {[%clk 0:02:35]}  Qe7 {[%clk 0:02:44]} 20. Re3 {[%clk 0:02:26]}  Rad8 {[%clk 0:02:40]} 21. Rg3 {[%clk 0:02:26]}  Kh8 {[%clk 0:02:38]} 22. Re1 {[%clk 0:02:04]}  Rd2 {[%clk 0:02:36]} 23. b4 {[%clk 0:01:54]}  Rfd8 {[%clk 0:02:34]} 24. h3 {[%clk 0:01:32]}  c6 {[%clk 0:02:32]} 25. a5 {[%clk 0:01:31]}  g6 {[%clk 0:02:22]} 26. Qf3 {[%clk 0:01:29]}  Kg7 {[%clk 0:02:22]} 27. Qe3 {[%clk 0:01:18]}  Nh5 {[%clk 0:02:16]} 28. Rf3 {[%clk 0:01:16]}  Nf4 {[%clk 0:02:15]} 29. Kh2 {[%clk 0:01:10]}  Rc2 {[%clk 0:02:08]} 30. g3 {[%clk 0:01:07]}  g5 {[%clk 0:01:57]} 31. gxf4 {[%clk 0:01:03]}  gxf4 {[%clk 0:01:56]} 32. Rg1+ {[%clk 0:01:03]}  Kh7 {[%clk 0:01:50]} 33. Qe1 {[%clk 0:00:48]}  Rdd2 {[%clk 0:01:49]} 34. Rg2 {[%clk 0:00:24]}  Qd7 {[%clk 0:01:41]} 35. Qg1 {[%clk 0:00:23]}  f6 {[%clk 0:01:34]} 36. Rg8 {[%clk 0:00:11]}  Rxf2+ {[%clk 0:01:18]} 37. Rxf2 {[%clk 0:00:11]}  Rxf2+ {[%clk 0:01:19]} 38. Qxf2 {[%clk 0:00:12]}  Qf7 {[%clk 0:01:19]} 39. Bxf7 {[%clk 0:00:11]} 1-0


[Site "https://www.chess.com"]

[Event "Titled Tuesday Blitz April 26 Late 2022"]
[White "Tregubov, Pavel V."]
[Black "Przybylski, Wojciech"]
[WhiteFideId "4115341"]
[BlackFideId "1117599"]
[WhiteElo "2341"]
[BlackElo "2133"]
[Result "1-0"]
[Round "10"]
[TimeControl "180+1"]
[Date "2022.04.26"]
[WhiteClock "0:00:30"]
[BlackClock "0:00:03"]

1. e4 {[%clk 0:03:00]}  c5 {[%clk 0:02:55]} 2. Nf3 {[%clk 0:03:00]}  e6 {[%clk 0:02:55]} 3. c3 {[%clk 0:03:00]}  Nf6 {[%clk 0:02:47]} 4. e5 {[%clk 0:02:59]}  Nd5 {[%clk 0:02:47]} 5. d4 {[%clk 0:03:00]}  cxd4 {[%clk 0:02:48]} 6. cxd4 {[%clk 0:03:01]}  d6 {[%clk 0:02:48]} 7. Bc4 {[%clk 0:03:01]}  Be7 {[%clk 0:02:47]} 8. O-O {[%clk 0:03:01]}  O-O {[%clk 0:02:46]} 9. Qe2 {[%clk 0:03:01]}  b6 {[%clk 0:02:45]} 10. Bxd5 {[%clk 0:02:57]}  exd5 {[%clk 0:02:45]} 11. Re1 {[%clk 0:02:48]}  dxe5 {[%clk 0:02:35]} 12. Nxe5 {[%clk 0:02:46]}  Be6 {[%clk 0:02:27]} 13. Nc3 {[%clk 0:02:45]}  Bf6 {[%clk 0:02:12]} 14. Bf4 {[%clk 0:02:43]}  Nd7 {[%clk 0:01:57]} 15. Nb5 {[%clk 0:02:29]}  Nxe5 {[%clk 0:01:51]} 16. dxe5 {[%clk 0:02:26]}  Be7 {[%clk 0:01:49]} 17. Nd4 {[%clk 0:02:06]}  Rc8 {[%clk 0:01:42]} 18. Be3 {[%clk 0:02:00]}  Qd7 {[%clk 0:01:37]} 19. f4 {[%clk 0:02:00]}  Bb4 {[%clk 0:01:25]} 20. Rf1 {[%clk 0:01:58]}  Bc5 {[%clk 0:01:18]} 21. Rad1 {[%clk 0:01:41]}  Bg4 {[%clk 0:01:12]} 22. Nf3 {[%clk 0:01:41]}  Qa4 {[%clk 0:01:05]} 23. Bxc5 {[%clk 0:01:20]}  Rxc5 {[%clk 0:00:58]} 24. h3 {[%clk 0:01:14]}  Bxf3 {[%clk 0:00:50]} 25. Rxf3 {[%clk 0:01:05]}  Rc2 {[%clk 0:00:49]} 26. Qd3 {[%clk 0:00:54]}  Rxb2 {[%clk 0:00:45]} 27. f5 {[%clk 0:00:50]}  Qxa2 {[%clk 0:00:26]} 28. Rg3 {[%clk 0:00:50]}  Qc4 {[%clk 0:00:24]} 29. Qe3 {[%clk 0:00:37]}  d4 {[%clk 0:00:22]} 30. Qh6 {[%clk 0:00:32]}  Rxg2+ {[%clk 0:00:03]} 31. Rxg2 {[%clk 0:00:30]} 1-0


[Site "https://www.chess.com"]

[Event "Titled Tuesday Blitz April 26 Late 2022"]
[White "Winkels, Marcel"]
[Black "Harish, Neeraj"]
[WhiteFideId "1003887"]
[BlackFideId "30958130"]
[WhiteElo "1900"]
[BlackElo "1574"]
[Result "1-0"]
[Round "10"]
[TimeControl "180+1"]
[Date "2022.04.26"]
[WhiteClock "0:00:51"]
[BlackClock "0:00:09"]

1. c4 {[%clk 0:03:00]}  Nf6 {[%clk 0:02:58]} 2. Nc3 {[%clk 0:03:01]}  g6 {[%clk 0:02:57]} 3. g3 {[%clk 0:03:01]}  d5 {[%clk 0:02:57]} 4. cxd5 {[%clk 0:02:59]}  Nxd5 {[%clk 0:02:58]} 5. Bg2 {[%clk 0:02:59]}  Nxc3 {[%clk 0:02:58]} 6. bxc3 {[%clk 0:02:58]}  Bg7 {[%clk 0:02:58]} 7. Nf3 {[%clk 0:02:57]}  O-O {[%clk 0:02:58]} 8. O-O {[%clk 0:02:55]}  c5 {[%clk 0:02:58]} 9. Rb1 {[%clk 0:02:47]}  Nc6 {[%clk 0:02:57]} 10. Bb2 {[%clk 0:02:38]}  Be6 {[%clk 0:02:50]} 11. a3 {[%clk 0:02:33]}  Bf5 {[%clk 0:02:44]} 12. d3 {[%clk 0:02:31]}  Qc7 {[%clk 0:02:19]} 13. c4 {[%clk 0:02:31]}  Bxb2 {[%clk 0:02:08]} 14. Rxb2 {[%clk 0:02:30]}  Rac8 {[%clk 0:02:01]} 15. Qa4 {[%clk 0:02:24]}  b6 {[%clk 0:01:54]} 16. Rfb1 {[%clk 0:02:11]}  Nd4 {[%clk 0:01:44]} 17. Nxd4 {[%clk 0:02:07]}  cxd4 {[%clk 0:01:45]} 18. Qd1 {[%clk 0:02:00]}  e5 {[%clk 0:01:37]} 19. a4 {[%clk 0:01:52]}  Rfd8 {[%clk 0:01:15]} 20. Qd2 {[%clk 0:01:47]}  Be6 {[%clk 0:01:10]} 21. a5 {[%clk 0:01:45]}  bxa5 {[%clk 0:00:56]} 22. Rb7 {[%clk 0:01:42]}  Qd6 {[%clk 0:00:52]} 23. Qxa5 {[%clk 0:01:36]}  Rb8 {[%clk 0:00:39]} 24. Qxa7 {[%clk 0:01:33]}  Rxb7 {[%clk 0:00:37]} 25. Qxb7 {[%clk 0:01:28]}  f5 {[%clk 0:00:29]} 26. Rb6 {[%clk 0:01:22]}  Qd7 {[%clk 0:00:23]} 27. Qxd7 {[%clk 0:01:16]}  Bxd7 {[%clk 0:00:23]} 28. Rd6 {[%clk 0:01:16]}  Kf7 {[%clk 0:00:21]} 29. Bc6 {[%clk 0:01:15]}  Ke7 {[%clk 0:00:21]} 30. Rxd7+ {[%clk 0:01:15]}  Rxd7 {[%clk 0:00:21]} 31. Bxd7 {[%clk 0:01:15]}  Kxd7 {[%clk 0:00:22]} 32. Kf1 {[%clk 0:01:14]}  Kc6 {[%clk 0:00:21]} 33. Ke1 {[%clk 0:01:15]}  e4 {[%clk 0:00:20]} 34. Kd2 {[%clk 0:01:14]}  Kc5 {[%clk 0:00:20]} 35. Kc2 {[%clk 0:01:14]}  h6 {[%clk 0:00:19]} 36. h4 {[%clk 0:01:13]}  Kb4 {[%clk 0:00:19]} 37. Kb2 {[%clk 0:01:12]}  g5 {[%clk 0:00:17]} 38. hxg5 {[%clk 0:01:10]}  hxg5 {[%clk 0:00:18]} 39. f4 {[%clk 0:01:04]}  gxf4 {[%clk 0:00:16]} 40. gxf4 {[%clk 0:01:04]}  exd3 {[%clk 0:00:14]} 41. exd3 {[%clk 0:01:03]}  Ka4 {[%clk 0:00:14]} 42. Ka2 {[%clk 0:01:03]}  Kb4 {[%clk 0:00:14]} 43. Kb2 {[%clk 0:01:03]}  Ka4 {[%clk 0:00:15]} 44. Kc2 {[%clk 0:00:53]}  Kb4 {[%clk 0:00:13]} 45. Kd2 {[%clk 0:00:54]}  Kc5 {[%clk 0:00:10]} 46. Ke2 {[%clk 0:00:53]}  Kb4 {[%clk 0:00:10]} 47. Kf3 {[%clk 0:00:53]}  Kc3 {[%clk 0:00:09]} 48. c5 {[%clk 0:00:52]}  Kxd3 {[%clk 0:00:10]} 49. c6 {[%clk 0:00:53]}  Kc2 {[%clk 0:00:09]} 50. c7 {[%clk 0:00:53]}  d3 {[%clk 0:00:10]} 51. c8=Q+ {[%clk 0:00:54]}  Kd1 {[%clk 0:00:09]} 52. Qc3 {[%clk 0:00:51]}  d2 {[%clk 0:00:09]} 53. Ke3 {[%clk 0:00:51]} 1-0


[Site "https://www.chess.com"]

[Event "Titled Tuesday Blitz April 26 Late 2022"]
[White "Xiong, Jeffery"]
[Black "Svane, Frederik"]
[WhiteFideId "2047640"]
[BlackFideId "12923044"]
[WhiteElo "2727"]
[BlackElo "2459"]
[Result "1-0"]
[Round "10"]
[TimeControl "180+1"]
[Date "2022.04.26"]
[WhiteClock "0:00:26"]
[BlackClock "0:00:06"]

1. c4 {[%clk 0:03:00]}  e6 {[%clk 0:02:57]} 2. Nc3 {[%clk 0:03:00]}  Nf6 {[%clk 0:02:57]} 3. e4 {[%clk 0:03:00]}  d5 {[%clk 0:02:57]} 4. e5 {[%clk 0:02:58]}  d4 {[%clk 0:02:57]} 5. exf6 {[%clk 0:02:59]}  dxc3 {[%clk 0:02:57]} 6. bxc3 {[%clk 0:02:59]}  Qxf6 {[%clk 0:02:57]} 7. Nf3 {[%clk 0:03:00]}  b6 {[%clk 0:02:55]} 8. g3 {[%clk 0:02:58]}  Bb7 {[%clk 0:02:55]} 9. Bg2 {[%clk 0:02:58]}  Bd6 {[%clk 0:02:42]} 10. d4 {[%clk 0:02:58]}  O-O {[%clk 0:02:38]} 11. Bg5 {[%clk 0:02:58]}  Qf5 {[%clk 0:02:02]} 12. Nh4 {[%clk 0:02:58]}  Qxg5 {[%clk 0:02:03]} 13. Bxb7 {[%clk 0:02:58]}  Nd7 {[%clk 0:02:03]} 14. Bxa8 {[%clk 0:02:58]}  Rxa8 {[%clk 0:02:03]} 15. O-O {[%clk 0:02:58]}  Nf6 {[%clk 0:02:01]} 16. a4 {[%clk 0:02:49]}  Qa5 {[%clk 0:01:58]} 17. Qd3 {[%clk 0:02:42]}  Rd8 {[%clk 0:01:58]} 18. Rfb1 {[%clk 0:02:40]}  Bf8 {[%clk 0:01:57]} 19. Nf3 {[%clk 0:02:34]}  c6 {[%clk 0:01:50]} 20. Nd2 {[%clk 0:02:28]}  Qh5 {[%clk 0:01:47]} 21. Qf3 {[%clk 0:02:25]}  Qxf3 {[%clk 0:01:45]} 22. Nxf3 {[%clk 0:02:25]}  Ne4 {[%clk 0:01:46]} 23. Rb3 {[%clk 0:02:19]}  Nd6 {[%clk 0:01:42]} 24. Ne5 {[%clk 0:02:05]}  Rc8 {[%clk 0:01:35]} 25. a5 {[%clk 0:02:04]}  b5 {[%clk 0:01:19]} 26. c5 {[%clk 0:01:49]}  Ne4 {[%clk 0:01:19]} 27. f3 {[%clk 0:01:34]}  Nf6 {[%clk 0:01:15]} 28. c4 {[%clk 0:01:34]}  a6 {[%clk 0:01:12]} 29. cxb5 {[%clk 0:01:22]}  cxb5 {[%clk 0:01:13]} 30. Nd3 {[%clk 0:01:22]}  Nd5 {[%clk 0:01:03]} 31. Kf2 {[%clk 0:01:23]}  Be7 {[%clk 0:00:55]} 32. f4 {[%clk 0:01:21]}  Kf8 {[%clk 0:00:55]} 33. Kf3 {[%clk 0:01:20]}  Ke8 {[%clk 0:00:51]} 34. g4 {[%clk 0:01:20]}  Kd7 {[%clk 0:00:50]} 35. f5 {[%clk 0:01:20]}  Bf6 {[%clk 0:00:44]} 36. Ke4 {[%clk 0:01:17]}  Re8 {[%clk 0:00:41]} 37. fxe6+ {[%clk 0:01:13]}  Kc6 {[%clk 0:00:40]} 38. Ne5+ {[%clk 0:00:49]}  Bxe5 {[%clk 0:00:39]} 39. exf7 {[%clk 0:00:50]}  Rf8 {[%clk 0:00:32]} 40. dxe5 {[%clk 0:00:50]}  Rxf7 {[%clk 0:00:32]} 41. e6 {[%clk 0:00:50]}  Rf6 {[%clk 0:00:29]} 42. Ke5 {[%clk 0:00:50]}  Nc7 {[%clk 0:00:29]} 43. Rd3 {[%clk 0:00:28]}  Rxe6+ {[%clk 0:00:29]} 44. Kf5 {[%clk 0:00:27]}  Rf6+ {[%clk 0:00:29]} 45. Ke4 {[%clk 0:00:26]}  Re6+ {[%clk 0:00:29]} 46. Kf5 {[%clk 0:00:25]}  Rf6+ {[%clk 0:00:26]} 47. Kg5 {[%clk 0:00:26]}  Ne6+ {[%clk 0:00:26]} 48. Kh4 {[%clk 0:00:26]}  Nxc5 {[%clk 0:00:23]} 49. Rd8 {[%clk 0:00:27]}  Rf7 {[%clk 0:00:11]} 50. Rc1 {[%clk 0:00:26]}  Rc7 {[%clk 0:00:08]} 51. g5 {[%clk 0:00:24]}  Kb7 {[%clk 0:00:07]} 52. Rd6 {[%clk 0:00:24]}  b4 {[%clk 0:00:05]} 53. Rb6+ {[%clk 0:00:24]}  Ka7 {[%clk 0:00:05]} 54. Rxb4 {[%clk 0:00:25]}  Rc6 {[%clk 0:00:04]} 55. Rbc4 {[%clk 0:00:25]}  Re6 {[%clk 0:00:04]} 56. Rxc5 {[%clk 0:00:25]}  Re4+ {[%clk 0:00:05]} 57. Kg3 {[%clk 0:00:25]}  Re3+ {[%clk 0:00:06]} 58. Kf4 {[%clk 0:00:26]} 1-0


[Site "https://www.chess.com"]

[Event "Titled Tuesday Blitz April 26 Late 2022"]
[White "volunteers1998"]
[Black "Remolar Gallen, Jose"]
[BlackFideId "2215187"]
[WhiteElo "2281"]
[BlackElo "2205"]
[Result "0-1"]
[Round "10"]
[TimeControl "180+1"]
[Date "2022.04.26"]
[WhiteClock "0:00:01"]
[BlackClock "0:00:11"]

1. e4 {[%clk 0:02:59]}  c5 {[%clk 0:02:59]} 2. Nf3 {[%clk 0:03:00]}  d6 {[%clk 0:03:00]} 3. d4 {[%clk 0:02:58]}  cxd4 {[%clk 0:03:00]} 4. Nxd4 {[%clk 0:02:58]}  Nf6 {[%clk 0:03:01]} 5. Nc3 {[%clk 0:02:55]}  a6 {[%clk 0:03:02]} 6. h3 {[%clk 0:02:53]}  e5 {[%clk 0:03:00]} 7. Nde2 {[%clk 0:02:52]}  h5 {[%clk 0:02:59]} 8. Bg5 {[%clk 0:02:45]}  Be7 {[%clk 0:02:55]} 9. g3 {[%clk 0:02:41]}  Nbd7 {[%clk 0:02:51]} 10. Bg2 {[%clk 0:02:39]}  b5 {[%clk 0:02:51]} 11. O-O {[%clk 0:02:34]}  Bb7 {[%clk 0:02:50]} 12. a3 {[%clk 0:02:20]}  Nc5 {[%clk 0:02:25]} 13. Bxf6 {[%clk 0:02:05]}  Bxf6 {[%clk 0:02:26]} 14. Nd5 {[%clk 0:02:01]}  h4 {[%clk 0:02:24]} 15. Qd2 {[%clk 0:01:42]}  hxg3 {[%clk 0:02:15]} 16. fxg3 {[%clk 0:01:40]}  Bg5 {[%clk 0:02:15]} 17. Qd1 {[%clk 0:01:33]}  Rc8 {[%clk 0:01:35]} 18. h4 {[%clk 0:01:27]}  Bxd5 {[%clk 0:01:28]} 19. Qxd5 {[%clk 0:01:25]}  Be3+ {[%clk 0:01:26]} 20. Kh2 {[%clk 0:01:22]}  Ne6 {[%clk 0:01:13]} 21. c3 {[%clk 0:01:11]}  Rxh4+ {[%clk 0:00:50]} 22. Bh3 {[%clk 0:01:05]}  Rh6 {[%clk 0:00:40]} 23. Rad1 {[%clk 0:00:56]}  Qg5 {[%clk 0:00:37]} 24. Qxd6 {[%clk 0:00:54]}  Rxh3+ {[%clk 0:00:37]} 25. Kxh3 {[%clk 0:00:50]}  Qh5+ {[%clk 0:00:38]} 26. Kg2 {[%clk 0:00:49]}  Qxe2+ {[%clk 0:00:38]} 27. Kh1 {[%clk 0:00:46]}  Qh5+ {[%clk 0:00:31]} 28. Kg2 {[%clk 0:00:44]}  Rd8 {[%clk 0:00:25]} 29. Qb6 {[%clk 0:00:42]}  Rxd1 {[%clk 0:00:23]} 30. Qxe3 {[%clk 0:00:36]}  Rxf1 {[%clk 0:00:21]} 31. Kxf1 {[%clk 0:00:36]}  Qh1+ {[%clk 0:00:20]} 32. Ke2 {[%clk 0:00:32]}  Qh2+ {[%clk 0:00:21]} 33. Kd1 {[%clk 0:00:25]}  Qxb2 {[%clk 0:00:21]} 34. Qd3 {[%clk 0:00:20]}  Qxa3 {[%clk 0:00:17]} 35. Qc2 {[%clk 0:00:16]}  Qa1+ {[%clk 0:00:16]} 36. Kd2 {[%clk 0:00:15]}  a5 {[%clk 0:00:15]} 37. Qb3 {[%clk 0:00:13]}  Qa4 {[%clk 0:00:14]} 38. Qd5 {[%clk 0:00:11]}  Qc4 {[%clk 0:00:13]} 39. Qa8+ {[%clk 0:00:09]}  Ke7 {[%clk 0:00:14]} 40. Qxa5 {[%clk 0:00:07]}  Nc5 {[%clk 0:00:12]} 41. Qc7+ {[%clk 0:00:05]}  Kf6 {[%clk 0:00:12]} 42. Qd6+ {[%clk 0:00:03]}  Ne6 {[%clk 0:00:11]} 43. g4 {[%clk 0:00:02]}  Qxe4 {[%clk 0:00:11]} 44. g5+ {[%clk 0:00:01]}  Kxg5 {[%clk 0:00:11]} 0-1


[Site "https://www.chess.com"]

[Event "Titled Tuesday Blitz April 26 Late 2022"]
[White "Akrakan"]
[Black "Mangialardo, Tiago Carvalho"]
[BlackFideId "2130718"]
[WhiteElo "2088"]
[BlackElo "2061"]
[Result "1-0"]
[Round "11"]
[TimeControl "180+1"]
[Date "2022.04.26"]
[WhiteClock "0:00:52"]
[BlackClock "0:00:01"]

1. e4 {[%clk 0:02:58]}  Nf6 {[%clk 0:03:00]} 2. e5 {[%clk 0:02:57]}  Nd5 {[%clk 0:03:01]} 3. Bc4 {[%clk 0:02:58]}  Nb6 {[%clk 0:03:01]} 4. Bb3 {[%clk 0:02:58]}  d6 {[%clk 0:03:01]} 5. exd6 {[%clk 0:02:57]}  exd6 {[%clk 0:03:01]} 6. d4 {[%clk 0:02:58]}  Be7 {[%clk 0:03:01]} 7. Nf3 {[%clk 0:02:58]}  O-O {[%clk 0:03:02]} 8. h3 {[%clk 0:02:59]}  Bf5 {[%clk 0:03:02]} 9. O-O {[%clk 0:02:59]}  Nc6 {[%clk 0:03:02]} 10. c3 {[%clk 0:02:58]}  d5 {[%clk 0:02:55]} 11. Re1 {[%clk 0:02:51]}  Bd6 {[%clk 0:02:47]} 12. Nbd2 {[%clk 0:02:51]}  Re8 {[%clk 0:02:42]} 13. Nf1 {[%clk 0:02:50]}  Rxe1 {[%clk 0:02:41]} 14. Qxe1 {[%clk 0:02:50]}  Qd7 {[%clk 0:02:24]} 15. Ne3 {[%clk 0:02:50]}  Re8 {[%clk 0:02:21]} 16. Qd1 {[%clk 0:02:50]}  Be4 {[%clk 0:02:21]} 17. Bc2 {[%clk 0:02:41]}  f5 {[%clk 0:02:18]} 18. Bd2 {[%clk 0:02:26]}  Ne7 {[%clk 0:01:37]} 19. Bxe4 {[%clk 0:02:21]}  dxe4 {[%clk 0:01:36]} 20. Ne5 {[%clk 0:02:16]}  Bxe5 {[%clk 0:01:21]} 21. dxe5 {[%clk 0:02:16]}  Kh8 {[%clk 0:01:15]} 22. Qe2 {[%clk 0:02:05]}  Qe6 {[%clk 0:01:06]} 23. Rd1 {[%clk 0:02:02]}  Qxe5 {[%clk 0:01:04]} 24. Nc4 {[%clk 0:01:59]}  Nxc4 {[%clk 0:00:59]} 25. Qxc4 {[%clk 0:01:59]}  Rd8 {[%clk 0:00:59]} 26. Kf1 {[%clk 0:01:33]}  f4 {[%clk 0:00:40]} 27. Ke2 {[%clk 0:01:27]}  e3 {[%clk 0:00:10]} 28. fxe3 {[%clk 0:01:26]}  fxe3 {[%clk 0:00:10]} 29. Be1 {[%clk 0:01:18]}  Qh5+ {[%clk 0:00:02]} 30. g4 {[%clk 0:01:18]}  Qe8 {[%clk 0:00:01]} 31. Rxd8 {[%clk 0:01:15]}  Qxd8 {[%clk 0:00:02]} 32. Kxe3 {[%clk 0:01:15]}  Nd5+ {[%clk 0:00:02]} 33. Ke2 {[%clk 0:01:13]}  Qe7+ {[%clk 0:00:01]} 34. Kf2 {[%clk 0:01:02]}  Qe3+ {[%clk 0:00:01]} 35. Kf1 {[%clk 0:01:00]}  Nf4 {[%clk 0:00:01]} 36. Bf2 {[%clk 0:00:52]} 1-0


[Site "https://www.chess.com"]

[Event "Titled Tuesday Blitz April 26 Late 2022"]
[White "Bas Mas, Jose Joaquin"]
[Black "Onslow, Alfie"]
[WhiteFideId "22219064"]
[BlackFideId "436976"]
[WhiteElo "2212"]
[BlackElo "1884"]
[Result "0-1"]
[Round "11"]
[TimeControl "180+1"]
[Date "2022.04.26"]
[WhiteClock "0:00:42"]
[BlackClock "0:01:16"]

1. e4 {[%clk 0:02:57]}  g6 {[%clk 0:02:57]} 2. Nc3 {[%clk 0:02:57]}  Bg7 {[%clk 0:02:56]} 3. d4 {[%clk 0:02:57]}  c6 {[%clk 0:02:56]} 4. f4 {[%clk 0:02:53]}  d5 {[%clk 0:02:56]} 5. e5 {[%clk 0:02:53]}  h5 {[%clk 0:02:56]} 6. h3 {[%clk 0:02:53]}  Nh6 {[%clk 0:02:56]} 7. Bd3 {[%clk 0:02:53]}  h4 {[%clk 0:02:55]} 8. Nf3 {[%clk 0:02:52]}  Nf5 {[%clk 0:02:44]} 9. Bxf5 {[%clk 0:02:52]}  Bxf5 {[%clk 0:02:44]} 10. O-O {[%clk 0:02:49]}  e6 {[%clk 0:02:44]} 11. Ne2 {[%clk 0:02:47]}  Nd7 {[%clk 0:02:42]} 12. Be3 {[%clk 0:02:46]}  Bf8 {[%clk 0:02:32]} 13. Bf2 {[%clk 0:02:42]}  Be7 {[%clk 0:02:32]} 14. a4 {[%clk 0:02:42]}  Kf8 {[%clk 0:02:29]} 15. c3 {[%clk 0:02:40]}  Kg7 {[%clk 0:02:29]} 16. a5 {[%clk 0:02:40]}  Qc7 {[%clk 0:02:24]} 17. b4 {[%clk 0:02:39]}  b5 {[%clk 0:02:20]} 18. axb6 {[%clk 0:02:33]}  axb6 {[%clk 0:02:21]} 19. Rxa8 {[%clk 0:02:31]}  Rxa8 {[%clk 0:02:20]} 20. Bxh4 {[%clk 0:02:27]}  Bxh4 {[%clk 0:02:11]} 21. Nxh4 {[%clk 0:02:27]}  c5 {[%clk 0:02:11]} 22. Nxf5+ {[%clk 0:02:26]}  gxf5 {[%clk 0:02:09]} 23. bxc5 {[%clk 0:02:24]}  bxc5 {[%clk 0:02:09]} 24. Qe1 {[%clk 0:02:21]}  Nf8 {[%clk 0:02:02]} 25. Qg3+ {[%clk 0:02:19]}  Ng6 {[%clk 0:02:02]} 26. Qg5 {[%clk 0:02:15]}  Qe7 {[%clk 0:02:00]} 27. Qxe7 {[%clk 0:02:13]}  Nxe7 {[%clk 0:02:01]} 28. dxc5 {[%clk 0:02:06]}  Rc8 {[%clk 0:01:59]} 29. Rb1 {[%clk 0:02:05]}  Rxc5 {[%clk 0:01:58]} 30. Rb7 {[%clk 0:02:05]}  Ng6 {[%clk 0:01:55]} 31. Kf2 {[%clk 0:02:03]}  Ra5 {[%clk 0:01:55]} 32. g3 {[%clk 0:02:00]}  Ra2 {[%clk 0:01:49]} 33. Ke3 {[%clk 0:01:59]}  Rc2 {[%clk 0:01:38]} 34. Kd3 {[%clk 0:01:57]}  Ra2 {[%clk 0:01:39]} 35. Ke3 {[%clk 0:01:46]}  Ra4 {[%clk 0:01:38]} 36. h4 {[%clk 0:01:45]}  Ra1 {[%clk 0:01:31]} 37. h5 {[%clk 0:01:41]}  Nf8 {[%clk 0:01:31]} 38. h6+ {[%clk 0:01:41]}  Kg6 {[%clk 0:01:31]} 39. Nd4 {[%clk 0:01:26]}  Rh1 {[%clk 0:01:29]} 40. Nc6 {[%clk 0:01:23]}  Rxh6 {[%clk 0:01:27]} 41. Ne7+ {[%clk 0:01:23]}  Kg7 {[%clk 0:01:27]} 42. Kf3 {[%clk 0:01:14]}  Rh1 {[%clk 0:01:26]} 43. Nc6 {[%clk 0:01:11]}  Rc1 {[%clk 0:01:23]} 44. Rb3 {[%clk 0:01:11]}  Nd7 {[%clk 0:01:22]} 45. Nd4 {[%clk 0:01:02]}  Nc5 {[%clk 0:01:21]} 46. Ra3 {[%clk 0:00:56]}  Ne4 {[%clk 0:01:20]} 47. Ne2 {[%clk 0:00:54]}  Rc2 {[%clk 0:01:19]} 48. Ke3 {[%clk 0:00:43]}  Kg6 {[%clk 0:01:19]} 49. Kf3 {[%clk 0:00:42]}  Nd2+ {[%clk 0:01:15]} 50. Ke3 {[%clk 0:00:42]}  Nc4+ {[%clk 0:01:16]} 0-1


[Site "https://www.chess.com"]

[Event "Titled Tuesday Blitz April 26 Late 2022"]
[White "Bortnyk, Olexandr"]
[Black "Sevian, Samuel"]
[WhiteFideId "14120828"]
[BlackFideId "2040506"]
[WhiteElo "2723"]
[BlackElo "2698"]
[Result "0-1"]
[Round "11"]
[TimeControl "180+1"]
[Date "2022.04.26"]
[WhiteClock "0:00:03"]
[BlackClock "0:01:12"]

1. d4 {[%clk 0:02:59]}  Nf6 {[%clk 0:02:59]} 2. Nc3 {[%clk 0:02:59]}  d5 {[%clk 0:02:59]} 3. Bf4 {[%clk 0:03:00]}  a6 {[%clk 0:02:58]} 4. e3 {[%clk 0:03:00]}  Nbd7 {[%clk 0:02:54]} 5. Nf3 {[%clk 0:02:59]}  c5 {[%clk 0:02:54]} 6. a3 {[%clk 0:02:53]}  g6 {[%clk 0:02:50]} 7. h3 {[%clk 0:02:32]}  Bg7 {[%clk 0:02:49]} 8. Be2 {[%clk 0:02:33]}  O-O {[%clk 0:02:49]} 9. O-O {[%clk 0:02:33]}  b6 {[%clk 0:02:49]} 10. Ne5 {[%clk 0:02:32]}  Bb7 {[%clk 0:02:48]} 11. Bf3 {[%clk 0:02:31]}  e6 {[%clk 0:02:48]} 12. Qe2 {[%clk 0:02:27]}  Rc8 {[%clk 0:02:47]} 13. Rfd1 {[%clk 0:02:26]}  Qe7 {[%clk 0:02:39]} 14. Bg5 {[%clk 0:02:19]}  Qd6 {[%clk 0:02:37]} 15. Bf4 {[%clk 0:02:13]}  Qe7 {[%clk 0:02:37]} 16. Rac1 {[%clk 0:02:04]}  b5 {[%clk 0:02:31]} 17. Nb1 {[%clk 0:02:03]}  Nb6 {[%clk 0:02:29]} 18. Bg5 {[%clk 0:01:54]}  Qc7 {[%clk 0:02:27]} 19. Bf4 {[%clk 0:01:51]}  Qe7 {[%clk 0:02:27]} 20. Bg5 {[%clk 0:01:48]}  Qc7 {[%clk 0:02:13]} 21. Nd2 {[%clk 0:01:48]}  Na4 {[%clk 0:02:11]} 22. Rb1 {[%clk 0:01:25]}  cxd4 {[%clk 0:02:11]} 23. exd4 {[%clk 0:01:26]}  Qxc2 {[%clk 0:02:10]} 24. Bxf6 {[%clk 0:01:09]}  Bxf6 {[%clk 0:02:10]} 25. Nd7 {[%clk 0:01:10]}  Bxd4 {[%clk 0:02:11]} 26. Nxf8 {[%clk 0:01:08]}  Kxf8 {[%clk 0:02:11]} 27. Rdc1 {[%clk 0:00:59]}  Qxc1+ {[%clk 0:02:09]} 28. Rxc1 {[%clk 0:01:00]}  Rxc1+ {[%clk 0:02:09]} 29. Kh2 {[%clk 0:01:01]}  Bxb2 {[%clk 0:02:08]} 30. Nb3 {[%clk 0:00:50]}  Rc7 {[%clk 0:02:07]} 31. h4 {[%clk 0:00:37]}  h5 {[%clk 0:02:06]} 32. Qe3 {[%clk 0:00:34]}  Kg7 {[%clk 0:01:56]} 33. Na5 {[%clk 0:00:33]}  Bc8 {[%clk 0:01:52]} 34. g4 {[%clk 0:00:33]}  hxg4 {[%clk 0:01:46]} 35. Bxg4 {[%clk 0:00:33]}  Bf6 {[%clk 0:01:44]} 36. h5 {[%clk 0:00:33]}  gxh5 {[%clk 0:01:29]} 37. Bxh5 {[%clk 0:00:33]}  Rc3 {[%clk 0:01:28]} 38. Qa7 {[%clk 0:00:27]}  Be5+ {[%clk 0:01:26]} 39. Kg2 {[%clk 0:00:26]}  Rc7 {[%clk 0:01:19]} 40. Qe3 {[%clk 0:00:25]}  Kf6 {[%clk 0:01:18]} 41. Qf3+ {[%clk 0:00:21]}  Kg7 {[%clk 0:01:18]} 42. Qg4+ {[%clk 0:00:21]}  Kf8 {[%clk 0:01:11]} 43. Qg5 {[%clk 0:00:20]}  f6 {[%clk 0:01:11]} 44. Qg6 {[%clk 0:00:14]}  Rg7 {[%clk 0:01:11]} 45. Kf1 {[%clk 0:00:02]}  Rxg6 {[%clk 0:01:10]} 46. Bxg6 {[%clk 0:00:03]}  Ke7 {[%clk 0:01:11]} 47. Nc6+ {[%clk 0:00:03]}  Kd6 {[%clk 0:01:11]} 48. Nb4 {[%clk 0:00:03]}  a5 {[%clk 0:01:11]} 49. Nd3 {[%clk 0:00:03]}  b4 {[%clk 0:01:11]} 50. axb4 {[%clk 0:00:03]}  axb4 {[%clk 0:01:11]} 51. Nxb4 {[%clk 0:00:04]}  Nc5 {[%clk 0:01:11]} 52. Kg2 {[%clk 0:00:04]}  f5 {[%clk 0:01:11]} 53. Nc2 {[%clk 0:00:03]}  Bc3 {[%clk 0:01:12]} 54. Bh7 {[%clk 0:00:03]}  d4 {[%clk 0:01:12]} 55. Kf3 {[%clk 0:00:02]}  Bb7+ {[%clk 0:01:12]} 56. Kg3 {[%clk 0:00:02]}  d3 {[%clk 0:01:12]} 57. Ne3 {[%clk 0:00:03]}  Ne4+ {[%clk 0:01:12]} 58. Kf4 {[%clk 0:00:03]}  Be5+ {[%clk 0:01:12]} 59. Kf3 {[%clk 0:00:03]}  Ng5# {[%clk 0:01:12]} 0-1


[Site "https://www.chess.com"]